bitfinex/quotes_ETHUSD_20220106
["timestamp","ask_amount","ask_price","bid_price","bid_amount"]
[1641487610899,0.73812,3388.6,3388.4,0.6873916]
[1641487611097,8.28812,3388.6,3388.5,0.0022737]
[1641487611497,9.28812,3388.6,3388.5,0.0022737]
[1641487611997,2.4762406,3388.6,3388.5,0.0022737]
[1641487612600,3.87233507,3388.6,3388.5,0.0022737]
[1641487613302,2.4762406,3388.6,3388.5,0.0022737]
[1641487613596,1.4762406,3388.6,3388.5,0.0022737]
[1641487614743,1.9002406,3388.6,3388.5,0.0022737]
[1641487615346,2.9002406,3388.6,3388.5,0.0022737]
[1641487615543,2.16212,3388.6,3388.5,0.0022737]
[1641487615741,2.16212,3388.6,3388.4,0.6873916]
[1641487615742,10.4,3388.5,3388.4,0.6873916]
[1641487615942,10.824,3388.5,3388.4,0.6873916]
[1641487616142,13.91081545,3388.5,3388.4,0.6873916]
[1641487616345,0.73821,3387.8,3387.1,5.1104]
[1641487616547,0.73821,3387.8,3387.2,0.3]
[1641487616744,0.73821,3387.8,3387.3,0.00682108]
[1641487617144,0.73821,3387.8,3387.2,1.4837395]
[1641487617749,0.73818,3387.5,3387.2,1.4837395]
[1641487618589,1.90015,3388.2,3387.4,1.40905834]
[1641487618889,0.73808,3387.9,3387.5,0.00568423]
[1641487619087,1.90015,3388.2,3387.7,0.73805]
[1641487619487,1.90015,3388.2,3387.8,0.00397896]
[1641487620088,0.73803,3388.1,3387.9,0.73805]
[1641487620491,0.73803,3388.1,3388.0,0.00284211]
[1641487620690,1.05015083,3388.4,3388.0,1.29303289]
[1641487620894,0.29136242,3388.1,3388.0,11.74303289]
[1641487621194,1.40020111,3388.6,3388.2,0.73773]
[1641487621491,1.40020111,3388.6,3388.3,0.30113684]
[1641487621690,2.08897008,3388.9,3388.3,0.30113684]
[1641487621944,4.64913335,3389.3,3388.7,0.73792]
[1641487622145,0.73967527,3388.8,3388.6,1.47584]
[1641487622345,0.73797,3388.8,3388.6,1.47584]
[1641487622544,0.00113685,3388.7,3388.6,1.47584]
[1641487624746,0.00113685,3388.7,3388.6,1.77584]
[1641487624948,0.00113685,3388.7,3388.6,1.47584]
[1641487625550,0.00113685,3388.7,3388.3,0.00113684]
[1641487625551,0.08526531,3388.7,3388.3,0.00113684]
[1641487625792,0.00113685,3388.7,3388.3,0.00113684]
[1641487625993,0.00113685,3388.7,3388.2,1.47566]
[1641487626196,0.00113685,3388.7,3388.4,0.73802]
[1641487628198,2.02327148,3388.5,3388.4,0.73802]
[1641487628597,2.02327148,3388.5,3388.3,0.00113684]
[1641487628598,3.02327148,3388.5,3388.3,0.00113684]
[1641487628797,0.73803,3388.4,3388.3,0.00113684]
[1641487628995,0.73803,3388.4,3387.9,1.476]
[1641487629470,0.73803,3388.4,3388.0,0.00284211]
[1641487629860,0.7380138,3388.3,3388.0,0.00284211]
[1641487630059,0.73799,3388.2,3388.0,0.00284211]
[1641487630458,0.73799,3388.2,3388.0,0.74085211]
[1641487630862,0.73799,3388.2,3388.1,0.00227369]
[1641487633603,1.04887648,3388.5,3388.1,0.00227369]
[1641487633807,1.04887648,3388.5,3388.3,1.39440439]
[1641487634604,1.04887648,3388.5,3388.3,2.13224439]
[1641487634804,0.00113685,3388.7,3388.3,2.13224439]
[1641487635405,0.73786,3388.6,3388.3,2.13224439]
[1641487635606,0.73786,3388.6,3388.4,0.73784]
[1641487636009,0.73786,3388.6,3388.4,1.03784]
[1641487637042,0.73786,3388.6,3388.4,0.73784]
[1641487638651,0.73786,3388.6,3388.4,1.03784]
[1641487639843,0.73786,3388.6,3388.4,0.73784]
[1641487640345,0.00113685,3388.7,3388.4,4.25987394]
[1641487640548,1.04887648,3389.0,3388.6,6.65]
[1641487640794,1.40020111,3389.2,3388.8,6.4]
[1641487641091,2.08897008,3389.5,3389.2,2.2378049]
[1641487641298,2.08897008,3389.5,3389.3,1.34119775]
[1641487641494,3.48843269,3390.3,3389.3,1.34119775]
[1641487641792,3.48843269,3390.3,3390.2,1.27784656]
[1641487641995,3.48843269,3390.3,3390.2,1.57784656]
[1641487642192,3.49639062,3390.3,3390.2,1.57784656]
[1641487642492,0.00795793,3390.3,3390.2,1.57784656]
[1641487643492,2.50776872,3390.3,3390.2,1.57784656]
[1641487643896,2.50776872,3390.3,3390.2,2.33314656]
[1641487644941,2.50776872,3390.3,3390.2,1.57784656]
[1641487648507,2.50776872,3390.3,3390.2,4.36719987]
[1641487649007,1.68339068,3391.2,3390.3,5.0]
[1641487649212,1.68339068,3391.2,3391.1,1.05360115]
[1641487650611,1.68339068,3391.2,3391.1,1.35360115]
[1641487652037,1.05680158,3391.6,3391.1,1.35360115]
[1641487652439,0.00682108,3391.5,3391.3,0.73708]
[1641487652842,0.03102876,3391.8,3391.4,0.3]
[1641487653042,0.03102876,3391.8,3391.7,1.16507901]
[1641487654041,0.03102876,3391.8,3391.6,0.3]
[1641487654244,0.03102876,3391.8,3391.5,1.03704]
[1641487654446,0.00795792,3391.7,3391.5,1.03704]
[1641487654844,0.0073895,3391.6,3391.5,0.3]
[1641487655343,0.0073895,3391.6,3391.2,0.73717]
[1641487655683,0.00682108,3391.5,3391.3,0.3]
[1641487656086,0.00625265,3391.4,3391.3,0.3]
[1641487656284,0.00625265,3391.4,3391.3,1.47436]
[1641487657284,0.00625265,3391.4,3391.2,1.86506532]
[1641487657684,1.05680158,3391.7,3391.2,1.86506532]
[1641487657685,1.05680158,3391.7,3391.3,0.3]
[1641487658085,0.0073895,3391.6,3391.3,0.3]
[1641487658286,0.0073895,3391.6,3391.4,0.73713]
[1641487658486,0.00682108,3391.5,3391.4,0.73713]
[1641487667846,0.01931461,3391.5,3391.2,1.47437]
[1641487668048,0.01931461,3391.5,3390.6,2.94825]
[1641487668246,0.00625265,3391.4,3390.6,2.94825]
[1641487668645,0.00568423,3391.3,3390.6,2.94825]
[1641487669046,0.00511581,3391.2,3390.6,2.94825]
[1641487669448,0.00454738,3391.1,3391.0,0.73738]
[1641487672295,0.00454738,3391.1,3390.6,2.94825]
[1641487672697,0.00397896,3391.0,3390.6,2.94825]
[1641487673101,2.69905591,3391.5,3390.7,0.73733]
[1641487673102,0.00341054,3390.9,3390.7,0.73733]
[1641487673502,2.61367605,3391.4,3390.1,3.1195]
[1641487673503,0.00284211,3390.8,3390.1,3.1195]
[1641487673702,0.00284211,3390.8,3389.6,3.7955]
[1641487673903,0.00227369,3390.7,3389.6,3.7955]
[1641487674105,0.00227369,3390.7,3389.7,0.00341054]
[1641487674302,2.87881521,3390.9,3389.7,0.00341054]
[1641487674303,0.00170527,3390.6,3389.7,0.00341054]
[1641487674540,1.9675296,3390.4,3389.6,1.08620196]
[1641487674942,0.00113684,3390.5,3389.9,0.73751]
[1641487675341,0.00113684,3390.5,3390.0,0.00170527]
[1641487676148,0.73866684,3390.5,3390.0,0.00170527]
[1641487677144,0.73866684,3390.5,3389.8,0.74037212]
[1641487677346,0.73866684,3390.5,3389.8,0.00284212]
[1641487677546,0.73866684,3390.5,3389.9,0.0022737]
[1641487677746,0.73866684,3390.5,3389.8,0.00284212]
[1641487678493,0.73866684,3390.5,3389.8,0.74040212]
[1641487678696,0.73866684,3390.5,3389.8,0.00284212]
[1641487678892,0.73866684,3390.5,3389.9,0.0022737]
[1641487679092,0.73866684,3390.5,3389.8,0.00284212]
[1641487680494,0.73866684,3390.5,3389.9,0.73755]
[1641487680895,0.73866684,3390.5,3390.0,0.00170527]
[1641487681495,0.73866684,3390.5,3390.2,0.73753]
[1641487683590,0.68476198,3390.5,3390.2,0.73753]
[1641487683789,0.68476198,3390.5,3390.3,0.00113684]
[1641487683991,2.84731181,3391.1,3390.3,0.00113684]
[1641487683992,7.4732,3391.2,3390.3,0.00113684]
[1641487684190,1.2406,3391.3,3390.3,0.00113684]
[1641487684391,0.00113685,3390.7,3390.3,0.00113684]
[1641487684592,0.00113685,3390.7,3390.6,1.10535099]
[1641487690451,0.00113685,3390.7,3390.5,2.9493504]
[1641487690651,0.00113685,3390.7,3390.5,1.47474]
[1641487691053,0.00113685,3390.7,3390.6,0.0398002]
[1641487691248,0.00113685,3390.7,3390.6,0.9939002]
[1641487691452,0.00113685,3390.7,3390.6,2.04936897]
[1641487691749,2.49941778,3391.3,3390.6,3.04936897]
[1641487691948,2.49941778,3391.3,3391.2,3.33528517]
[1641487692148,0.08072575,3391.4,3391.2,3.36694021]
[1641487692948,0.08072575,3391.4,3391.2,4.10400021]
[1641487693202,2.35864747,3392.0,3391.3,1.0]
[1641487693397,2.35864747,3392.0,3391.9,1.39914323]
[1641487693605,2.35864747,3392.0,3391.9,1.69914323]
[1641487694798,2.35864747,3392.0,3391.9,0.3]
[1641487696798,2.35864747,3392.0,3391.6,1.47397]
[1641487697051,2.35864747,3392.0,3390.8,3.7834]
[1641487697248,0.00682108,3391.9,3390.9,0.73721]
[1641487697449,0.00682108,3391.9,3391.4,0.7372]
[1641487697652,0.00625266,3391.8,3391.4,0.7372]
[1641487697857,0.74348266,3391.8,3391.2,1.47436]
[1641487698052,0.00568423,3391.7,3390.7,4.3662759]
[1641487698251,0.00568423,3391.7,3390.5,0.2089]
[1641487698451,0.00511581,3391.6,3390.5,0.2089]
[1641487698650,0.00511581,3391.6,3390.5,0.94618]
[1641487698855,0.00454739,3391.5,3391.0,0.73724]
[1641487699254,0.00397896,3391.4,3391.0,0.73724]
[1641487699450,0.00397896,3391.4,3391.2,1.34202181]
[1641487699652,0.00341054,3391.3,3391.2,1.34202181]
[1641487699853,0.00341054,3391.3,3391.2,2.07917401]
[1641487701295,0.00341054,3391.3,3391.2,2.0906247]
[1641487703197,0.00341054,3391.3,3391.2,3.0906247]
[1641487703397,0.00341054,3391.3,3391.2,2.0946417]
[1641487703597,0.00341054,3391.3,3391.2,1.0946417]
[1641487703799,0.00341054,3391.3,3391.2,0.01145069]
[1641487708390,1.05680158,3391.9,3391.3,5.50903315]
[1641487708589,1.05680158,3391.9,3391.5,0.91606]
[1641487708789,0.00284212,3391.8,3391.6,2.82036513]
[1641487708989,1.05680158,3391.9,3391.6,2.82036513]
[1641487709194,1.05680158,3391.9,3391.7,1.0]
[1641487709389,1.05680158,3391.9,3391.8,0.3]
[1641487709790,2.35864747,3392.0,3391.9,1.10586856]
[1641487710194,2.35978431,3392.0,3391.9,1.10586856]
[1641487710591,1.57474663,3392.1,3392.0,3.15]
[1641487710793,1.57474663,3392.1,3392.0,0.3]
[1641487710992,1.57474663,3392.1,3392.0,1.7368]
[1641487711195,1.05680158,3392.5,3392.0,2.0368]
[1641487711402,1.05680158,3392.5,3392.1,1.0]
[1641487711695,0.0022737,3392.4,3392.0,1.3]
[1641487712143,0.00170528,3392.3,3392.2,0.7368]
[1641487712545,0.00170528,3392.3,3392.2,1.0368]
[1641487714350,0.00170528,3392.3,3392.2,4.00322963]
[1641487714546,0.00170528,3392.3,3392.2,5.00322963]
[1641487714745,1.05680158,3392.9,3392.2,5.00322963]
[1641487714947,1.05680158,3392.9,3392.6,0.73671]
[1641487715146,1.05680158,3392.9,3392.7,1.92334884]
[1641487715147,0.00284211,3392.8,3392.7,1.92334884]
[1641487715445,0.00284211,3392.8,3392.7,2.22334884]
[1641487715713,0.00284211,3392.8,3392.7,3.22334884]
[1641487716212,2.49824398,3393.1,3392.7,6.72249803]
[1641487716414,7.25680158,3393.2,3392.9,0.73664]
[1641487716612,7.25680158,3393.2,3392.9,2.62764]
[1641487716613,0.00113685,3393.0,3392.9,2.62764]
[1641487716813,1.36553843,3393.2,3393.0,7.65]
[1641487717015,1.36553843,3393.2,3392.9,2.62764]
[1641487717016,1.36553843,3393.2,3392.9,1.62764]
[1641487717215,1.36553843,3393.2,3393.1,1.0]
[1641487717412,1.36553843,3393.2,3393.0,1.47312]
[1641487717613,1.36667528,3393.2,3393.0,2.47312]
[1641487717819,1.40888833,3393.5,3393.2,10.4]
[1641487718017,1.40888833,3393.5,3393.3,1.19789839]
[1641487718216,0.00113684,3393.4,3393.3,2.19789839]
[1641487718416,7.25627601,3393.7,3393.4,10.43301589]
[1641487718417,3.79213445,3393.7,3393.4,10.43301589]
[1641487718615,3.79213445,3393.7,3393.5,1.0]
[1641487718616,1.05627601,3393.7,3393.5,1.0]
[1641487718817,0.00113685,3393.6,3393.5,6.95]
[1641487719017,0.22680286,3393.7,3393.5,1.77450437]
[1641487719218,1.40888833,3394.0,3393.5,2.4728321]
[1641487719446,1.40888833,3394.0,3393.7,1.20956114]
[1641487719648,2.11333249,3394.2,3393.7,0.3]
[1641487719649,0.00170527,3393.9,3393.7,0.3]
[1641487720047,6.2,3394.2,3393.7,0.3]
[1641487720048,0.00113685,3393.8,3393.7,0.3]
[1641487720249,0.00113685,3393.8,3393.6,0.3]
[1641487720947,0.00113685,3393.8,3393.1,1.47325]
[1641487721147,0.00113685,3393.8,3392.9,3.2057]
[1641487721346,0.00113685,3393.8,3393.2,0.00227369]
[1641487721748,0.00113685,3393.8,3393.5,1.84300986]
[1641487721947,0.00113685,3393.8,3393.3,1.28706027]
[1641487722149,0.00113685,3393.8,3393.3,2.02381027]
[1641487722446,0.00113685,3393.8,3393.4,0.00113685]
[1641487725609,0.00113685,3393.8,3393.5,0.88401]
[1641487726010,0.00113685,3393.8,3393.6,0.3]
[1641487726211,0.00113685,3393.8,3393.7,2.79900605]
[1641487726411,0.00113685,3393.8,3393.6,0.3]
[1641487726811,0.00113685,3393.8,3393.6,0.742]
[1641487727252,0.00113685,3393.8,3393.7,0.01144224]
[1641487736447,0.00113685,3393.8,3393.7,0.35657026]
[1641487744652,7.50113685,3393.8,3393.7,0.35657026]
[1641487744853,7.45113685,3393.8,3393.7,0.35657026]
[1641487745352,3.64713104,3394.2,3393.7,0.35657026]
[1641487745353,1.8015187,3393.9,3393.7,0.35657026]
[1641487745557,10.62366,3393.8,3393.7,0.35657026]
[1641487745997,1.47366,3393.8,3393.7,0.01144224]
[1641487746398,3.51130983,3393.8,3393.7,0.01144224]
[1641487746598,14.78917938,3393.8,3393.7,0.01144224]
[1641487748301,6.13917938,3393.8,3393.7,0.01144224]
[1641487749545,6.87597518,3393.8,3393.7,0.01144224]
[1641487749747,4.24810563,3393.8,3393.7,0.01144224]
[1641487749947,2.03764983,3393.8,3393.7,0.01144224]
[1641487750148,4.54550465,3393.8,3393.7,0.01144224]
[1641487750350,2.03764983,3393.8,3393.7,0.01144224]
[1641487750548,4.56515583,3393.8,3393.7,0.01144224]
[1641487750747,4.5568744,3393.8,3393.7,0.01144224]
[1641487750950,5.30190688,3393.8,3393.7,0.01144224]
[1641487751148,6.314043,3393.8,3393.7,4.224e-05]
[1641487751353,10.4,3393.7,3393.4,0.00113685]
[1641487751552,11.14952417,3393.5,3393.4,0.00113685]
[1641487751751,10.41247417,3393.5,3392.5,0.00738951]
[1641487751951,2.04453092,3393.3,3392.5,0.00738951]
[1641487752155,1.47409,3393.1,3392.5,0.40314799]
[1641487752352,2.68141311,3393.0,3392.5,0.40314799]
[1641487752553,3.41846311,3393.0,3392.6,0.00682108]
[1641487753207,5.45611294,3393.0,3392.6,0.40257956]
[1641487753396,2.77469983,3393.0,3392.6,0.40257956]
[1641487753601,2.77469983,3393.0,3392.7,0.00625266]
[1641487754098,2.03764983,3392.9,3392.7,0.00625266]
[1641487754501,2.03764983,3392.9,3392.7,0.44217]
[1641487754697,3.32660896,3393.0,3392.7,0.44217]
[1641487754698,2.03764983,3392.8,3392.7,0.44217]
[1641487755499,2.03764983,3392.8,3392.7,0.80209036]
[1641487755699,1.98764983,3392.8,3392.7,1.10209036]
[1641487755899,1.98764983,3392.8,3392.7,2.37517172]
[1641487758855,1.93764983,3392.8,3392.7,2.37517172]
[1641487762302,1.9098444,3392.8,3392.7,2.37517172]
[1641487762700,1.9098444,3392.8,3392.7,2.07517172]
[1641487764003,1.9098444,3392.8,3392.7,2.49917172]
[1641487764202,1.9098444,3392.8,3392.7,2.79917172]
[1641487764644,1.0545655,3393.1,3392.7,2.79917172]
[1641487764850,1.0545655,3393.1,3392.8,0.73667]
[1641487765050,1.0545655,3393.6,3393.3,1.10762028]
[1641487765451,1.0545655,3393.6,3393.4,0.0022737]
[1641487766252,0.00113684,3394.0,3393.5,1.64675579]
[1641487766253,1.0545655,3393.8,3393.5,1.64675579]
[1641487766656,1.0545655,3393.8,3393.6,0.00113685]
[1641487767257,1.40722417,3394.0,3393.6,0.00113685]
[1641487767258,1.0545655,3393.9,3393.6,0.00113685]
[1641487768303,0.00113684,3394.0,3393.6,0.44311685]
[1641487768500,0.00113684,3394.0,3393.6,0.74311685]
[1641487769301,1.05570234,3394.0,3393.9,1.1382964]
[1641487769501,1.05570234,3394.0,3393.9,1.4382964]
[1641487769900,0.00113684,3394.0,3393.9,1.4382964]
[1641487774553,1.0545655,3394.2,3394.0,3.4]
[1641487774754,1.0545655,3394.2,3393.9,2.3362964]
[1641487774755,1.0545655,3394.2,3393.9,3.9293264]
[1641487775150,2.19405414,3394.7,3394.0,8.25]
[1641487775352,2.19405414,3394.7,3393.9,3.9293264]
[1641487775551,0.0022737,3394.4,3393.9,3.1928964]
[1641487775805,0.08072165,3394.7,3394.2,0.73636]
[1641487776004,0.08072165,3394.7,3394.4,1.32545]
[1641487776202,0.00113684,3394.6,3394.4,1.32545]
[1641487776403,0.00113684,3394.6,3394.5,1.38079927]
[1641487776702,0.08072165,3394.7,3394.5,1.38079927]
[1641487777303,2.11333249,3395.4,3394.5,1.38079927]
[1641487777804,0.00397897,3395.3,3395.1,1.60459206]
[1641487778005,0.00397897,3395.3,3394.5,1.38079927]
[1641487778206,0.00341055,3395.2,3394.5,1.38079927]
[1641487778607,0.00284212,3395.1,3394.5,1.38079927]
[1641487778806,0.00284212,3395.1,3394.8,0.44181]
[1641487779006,0.0022737,3395.0,3394.8,0.74181]
[1641487779452,0.00170528,3394.9,3394.8,0.74181]
[1641487780253,0.00170528,3394.9,3394.8,2.4175477]
[1641487781756,2.84968249,3395.7,3395.2,1.03795621]
[1641487781757,1.42010206,3395.7,3395.2,1.03795621]
[1641487781961,1.42010206,3395.7,3395.3,0.3]
[1641487782155,0.00341054,3395.5,3395.3,0.3]
[1641487782556,0.00284211,3395.4,3395.3,0.3]
[1641487782956,0.00284211,3395.4,3394.8,2.4175477]
[1641487782957,1.91546477,3395.4,3394.8,2.4175477]
[1641487783403,0.00227369,3395.3,3394.8,2.4175477]
[1641487783599,0.00227369,3395.3,3394.9,0.48265535]
[1641487783802,0.68866369,3395.6,3395.1,1.08310915]
[1641487783999,0.68866369,3395.6,3395.1,1.38310915]
[1641487784201,1.91262266,3395.8,3395.1,1.38310915]
[1641487784202,0.00227369,3395.7,3395.1,1.38310915]
[1641487784504,0.00170527,3395.6,3395.1,1.38310915]
[1641487784701,0.00170527,3395.6,3395.0,0.00170527]
[1641487784902,0.00113685,3395.5,3395.0,0.00170527]
[1641487785103,0.00113685,3395.5,3395.3,0.44184]
[1641487785303,0.00170527,3395.6,3395.3,0.44184]
[1641487785503,0.00170527,3395.6,3395.3,0.74184]
[1641487785703,0.00113685,3395.5,3395.3,0.44184]
[1641487786003,1.91432793,3395.6,3395.3,0.44184]
[1641487786403,0.00113685,3395.5,3395.3,0.44184]
[1641487786803,0.00113685,3395.5,3395.3,0.74184]
[1641487787455,1.91375951,3395.5,3394.9,0.37048369]
[1641487787655,1.91375951,3395.5,3394.9,0.00227369]
[1641487787856,1.91375951,3395.5,3395.0,0.00170527]
[1641487788056,1.91375951,3395.5,3395.2,1.04680428]
[1641487788255,1.91262266,3395.4,3395.2,1.04680428]
[1641487788456,1.91262266,3395.4,3395.3,0.3]
[1641487790055,1.91262266,3395.4,3394.9,0.00227369]
[1641487791106,1.06899856,3395.3,3394.9,0.48486484]
[1641487791303,2.98162122,3395.3,3395.0,0.73631]
[1641487791502,2.98162122,3395.3,3395.1,0.3]
[1641487791703,2.98162122,3395.3,3395.1,0.30113685]
[1641487792104,1.06899856,3395.2,3395.1,0.30113685]
[1641487793104,1.80540856,3395.3,3395.1,0.783728]
[1641487793504,1.80540856,3395.3,3395.1,0.483728]
[1641487793703,1.91262266,3395.2,3395.1,0.00113685]
[1641487794105,1.91262266,3395.2,3394.9,0.00227369]
[1641487794755,1.91262266,3395.2,3394.9,0.4848869]
[1641487795155,1.91262266,3395.2,3395.0,0.00170527]
[1641487795756,1.07100487,3395.1,3395.0,1.09102987]
[1641487796156,1.07100487,3395.1,3395.0,1.3893246]
[1641487796556,1.91262266,3395.2,3395.0,0.78261321]
[1641487796756,1.91262266,3395.2,3395.0,1.51892321]
[1641487796956,1.91262266,3395.2,3395.1,0.00113685]
[1641487797460,1.07100487,3395.2,3395.1,0.78375006]
[1641487798058,1.07100487,3395.3,3395.1,0.78375006]
[1641487798307,1.91262266,3395.2,3395.1,0.78375006]
[1641487798808,2.98362753,3395.3,3395.1,0.30113685]
[1641487799007,2.98362753,3395.3,3395.1,0.00113685]
[1641487799608,1.07100487,3395.2,3395.1,0.00113685]
[1641487801010,2.88390881,3395.5,3395.1,0.00113685]
[1641487801211,3.32254462,3395.3,3395.1,0.00113685]
[1641487801413,5.78642,3395.2,3395.1,0.00113685]
[1641487801610,0.73642,3395.2,3395.1,0.00113685]
[1641487802759,3.726423,3395.2,3395.1,0.00113685]
[1641487804354,2.64904266,3395.2,3395.1,0.00113685]
[1641487805802,2.990003,3395.2,3395.1,0.00113685]
[1641487806603,1.07738034,3395.2,3395.1,0.00113685]
[1641487807004,2.990003,3395.3,3395.1,0.00113685]
[1641487807807,2.990003,3395.3,3395.2,1.00999574]
[1641487808406,2.990003,3395.3,3395.2,1.43399574]
[1641487808605,1.41105881,3395.5,3395.3,8.1]
[1641487808805,0.20906881,3395.5,3395.4,10.774]
[1641487809007,1.44447282,3396.0,3395.5,10.65]
[1641487809206,1.44447282,3396.0,3395.6,0.424]
[1641487809456,1.44447282,3396.0,3395.6,1.424]
[1641487809457,0.00113684,3395.7,3395.6,1.424]
[1641487809651,1.44447282,3396.0,3395.6,1.424]
[1641487809652,1.39075112,3396.0,3395.6,1.724]
[1641487809854,1.39075112,3396.0,3395.8,3.48165421]
[1641487810051,0.08071817,3396.2,3395.8,3.48165421]
[1641487810052,0.00113685,3395.9,3395.8,5.25377421]
[1641487810252,0.00113685,3395.9,3395.8,4.20565421]
[1641487810454,0.0022737,3396.1,3395.8,4.94168421]
[1641487810853,0.08071817,3396.2,3395.8,4.94165421]
[1641487811251,2.75669288,3397.4,3395.8,4.94165421]
[1641487811452,1.47201,3397.5,3396.3,1.47198]
[1641487811653,0.736,3397.2,3396.3,1.47198]
[1641487811855,0.736,3397.2,3396.4,0.3]
[1641487812054,0.00625266,3397.1,3396.4,0.3]
[1641487812554,0.00568424,3397.0,3396.8,1.47198]
[1641487812855,0.00511581,3396.9,3396.8,1.03599]
[1641487813054,0.00511581,3396.9,3396.8,0.3]
[1641487813310,0.00511581,3396.9,3396.1,1.47215]
[1641487813511,0.00511581,3396.9,3396.2,1.03609]
[1641487813705,0.5,3397.4,3396.2,1.03609]
[1641487813706,0.00454739,3396.8,3396.2,1.03609]
[1641487814105,0.00397897,3396.7,3396.6,1.36821857]
[1641487814508,0.00397897,3396.7,3396.6,1.66821857]
[1641487816406,2.20154641,3396.7,3396.6,1.66821857]
[1641487818655,2.20154641,3396.7,3396.6,1.36821857]
[1641487819954,2.20154641,3396.7,3396.6,1.66821857]
[1641487820254,1.51304757,3396.7,3396.6,1.66821857]
[1641487820555,1.51304757,3396.7,3396.6,4.46925323]
[1641487820809,1.51304757,3396.7,3396.6,6.28835323]
[1641487821208,1.76646203,3397.7,3396.7,3.25]
[1641487821409,1.5090686,3397.6,3397.3,1.77303214]
[1641487821707,1.5090686,3397.6,3397.3,2.14093214]
[1641487821708,1.51418441,3397.6,3397.3,2.14093214]
[1641487821905,1.51418441,3397.6,3397.4,0.7357631]
[1641487822307,1.51418441,3397.6,3397.5,4.06860912]
[1641487822308,0.00511581,3397.6,3397.5,4.06860912]
[1641487822509,0.6873916,3397.7,3397.5,4.36860912]
[1641487822708,0.6873916,3397.7,3397.5,4.73643912]
[1641487822908,0.6873916,3397.7,3397.5,2.04631586]
[1641487824471,0.6873916,3397.7,3397.5,2.75832482]
[1641487825669,0.6873916,3397.7,3397.5,3.49396482]
[1641487826471,0.6873916,3397.7,3397.5,2.75832482]
[1641487826872,0.6873916,3397.7,3397.5,3.49397482]
[1641487827473,0.6873916,3397.7,3397.6,2.78267959]
[1641487827673,0.6873916,3397.7,3397.6,3.44726557]
[1641487828302,0.6873916,3397.7,3397.6,0.66458598]
[1641487829111,0.6873916,3397.7,3397.6,3.49482639]
[1641487829308,1.2436,3398.9,3397.6,3.49482639]
[1641487829309,2.32267043,3398.9,3397.7,9.95]
[1641487829508,2.32267043,3398.9,3398.2,0.73551]
[1641487829708,2.32267043,3398.9,3398.3,1.09418991]
[1641487829709,0.00682108,3398.8,3398.3,1.09418991]
[1641487829910,0.00682108,3398.8,3398.3,2.05262726]
[1641487830107,0.00625266,3398.7,3398.3,2.05262726]
[1641487830309,0.00625266,3398.7,3398.3,2.58924112]
[1641487830508,0.00568423,3398.6,3398.3,2.58924112]
[1641487830807,0.00511581,3398.5,3398.4,2.14520531]
[1641487831010,0.00511581,3398.5,3398.4,3.34025652]
[1641487831616,1.57663824,3398.5,3398.4,5.54679282]
[1641487832664,0.00511581,3398.5,3398.4,5.54679282]
[1641487833258,0.00511581,3398.5,3398.4,8.30909391]
[1641487833861,0.08071123,3399.2,3398.5,7.45]
[1641487834060,0.08071123,3399.2,3398.9,1.4493591]
[1641487834259,0.08071123,3399.2,3398.9,2.48535501]
[1641487834260,0.00341054,3399.1,3398.9,2.48535501]
[1641487834461,0.00341054,3399.1,3398.9,5.18753273]
[1641487834660,0.08071123,3399.2,3398.9,2.77951501]
[1641487834661,0.00284212,3399.0,3398.9,2.77951501]
[1641487837108,0.00284212,3399.0,3398.9,2.48535501]
[1641487838310,0.00284212,3399.0,3398.9,2.0799526]
[1641487845315,0.00284212,3399.0,3398.9,0.6305935]
[1641487845516,6.50284212,3399.0,3398.9,0.6305935]
[1641487845715,2.78049326,3399.0,3398.9,0.62422679]
[1641487845917,0.00284212,3399.0,3398.9,0.62422679]
[1641487846215,0.00284212,3399.0,3398.2,0.62422679]
[1641487846414,0.73850212,3399.0,3398.5,1.25675571]
[1641487846616,0.00227369,3398.9,3398.5,1.90562335]
[1641487847055,0.00170527,3398.8,3398.5,1.90562335]
[1641487847460,0.00113685,3398.7,3398.5,1.90562335]
[1641487847861,0.00227369,3398.9,3398.5,1.90562335]
[1641487848061,0.00227369,3398.9,3398.5,0.64886764]
[1641487848262,0.73738527,3398.8,3398.5,0.64886764]
[1641487848461,0.73738527,3398.8,3398.4,0.66638311]
[1641487848462,2.54864463,3398.7,3398.4,0.66638311]
[1641487848763,0.00113685,3398.7,3398.4,0.66638311]
[1641487849165,0.73573,3398.6,3398.3,0.00113685]
[1641487849369,0.73573,3398.6,3398.3,0.66751996]
[1641487849564,0.73573,3398.6,3398.3,0.66638311]
[1641487850368,0.73573,3398.6,3398.5,2.00134597]
[1641487851010,0.00113685,3398.7,3398.5,0.3]
[1641487851411,0.00113685,3398.7,3398.4,1.39627823]
[1641487851608,0.00113685,3398.7,3398.4,1.69054823]
[1641487851810,0.0008863,3398.5,3398.4,1.69054823]
[1641487852410,0.0008863,3398.5,3398.4,6.17616823]
[1641487853414,0.0008863,3398.5,3398.4,8.12391725]
[1641487855560,0.0008863,3398.5,3398.4,9.08399813]
[1641487855962,2.59224892,3398.6,3398.4,9.08399813]
[1641487856362,0.0010589,3398.6,3398.4,14.38399813]
[1641487856760,0.0010589,3398.6,3398.4,9.08399813]
[1641487857163,0.0010589,3398.6,3398.4,5.33399813]
[1641487857463,0.0010589,3398.6,3398.4,7.23399813]
[1641487857662,1.10669835,3398.6,3398.5,0.96008088]
[1641487858308,0.0010589,3398.6,3398.5,0.96008088]
[1641487859309,1.43981947,3398.6,3398.5,0.96008088]
[1641487860711,0.0010589,3398.6,3398.4,3.59054823]
[1641487860910,1.51317849,3398.6,3398.4,3.59054823]
[1641487861712,2.98929076,3398.5,3398.4,0.59427]
[1641487861956,5.63128778,3398.5,3397.8,0.00397896]
[1641487862156,0.73581,3398.2,3397.8,0.00397896]
[1641487862360,0.73581,3398.2,3397.7,0.3]
[1641487862361,2.75495447,3398.1,3397.7,0.00454739]
[1641487862559,2.75495447,3398.1,3397.8,0.00397896]
[1641487862759,0.7358449,3398.3,3397.7,0.00454739]
[1641487862959,1.52431411,3398.5,3397.7,0.00454739]
[1641487862960,1.47174,3398.1,3397.7,0.00454739]
[1641487863163,5.50410299,3398.0,3397.8,0.98866988]
[1641487863362,2.99206503,3398.0,3397.8,0.98866988]
[1641487863561,2.99206503,3398.0,3397.9,0.00341054]
[1641487864167,1.47994544,3398.0,3397.9,0.00341054]
[1641487864363,5.5643563,3398.0,3397.9,0.00341054]
[1641487864967,4.08441086,3398.0,3397.9,0.00341054]
[1641487865364,4.08441086,3398.0,3397.2,0.00738951]
[1641487865365,6.24611605,3398.0,3397.2,0.00738951]
[1641487865566,0.7359717,3397.7,3397.1,1.02725282]
[1641487865809,2.7855025,3397.9,3397.2,0.00738951]
[1641487867312,1.10867038,3397.4,3397.3,1.02291068]